Cogmind - Beta 13 @@@ ROGUE MODE // 2024.05.01 @ 17:27:25 Player: BionicBot Result: Destroyed by as-48280 with Assembled Blade Performance ------------- Evolutions (0) 0 Regions Visited (4) 800 Robots Destroyed (16) 80 Value Destroyed (447) 447 Prototype IDs (2) 40 Alien Tech Used (0) 0 Bonus (99) 99 TOTAL SCORE: 1466 Bonus ------- Follower Combat Kills 110 Friendly Fire -11 Cogmind --------- Core Integrity 0/250 Matter 300/300 Energy 150/160 System Corruption 1% Temperature Warm (106) Movement Walking (120) Location -9/Mines Parts ------- > --- POWER (1) -------- Light Nuclear Core > --- PROPULSION (2) --- Improved Aluminum Leg Improved Aluminum Leg > --- UTILITY (2) ------ Small Storage Unit Signal Interpreter > --- WEAPON (2) ------- Particle Gun > --- INVENTORY (8) ---- Ion Engine Improved Aluminum Leg Improved Aluminum Leg Seismic Detector Seismic Detector Medium Laser Assault Rifle Peak State ------------ > --- POWER ------------ Light Nuclear Core > --- PROPULSION ------- Improved Aluminum Leg Improved Aluminum Leg > --- UTILITY ---------- Small Storage Unit Signal Interpreter > --- WEAPON ----------- Particle Gun Assault Rifle > --- INVENTORY -------- Ion Engine Improved Aluminum Leg Improved Aluminum Leg Seismic Detector Medium Laser [Rating: 12] Favorites ----------- Power Light Ion Engine Engine Light Ion Engine Power Core Light Nuclear Core Propulsion Improved Aluminum Leg Leg Improved Aluminum Leg Utility Small Storage Unit Device Seismic Detector Storage Small Storage Unit Processor Signal Interpreter Weapon Assault Rifle Energy Gun Particle Gun Ballistic Gun Assault Rifle Build | -11 -10 -10 -10 -9 ------- Run | Yrd Mat Min Exi Min Slots Evolved . | . . . . . Power . | . . . . . Propulsion . | . . . . . Utility . | . . . . . Weapon . | . . . . . Parts Attached 15 | 6 7 1 . 1 Power 4 | 1 1 1 . 1 Engine 2 | 1 . 1 . . Core 2 | . 1 . . 1 Reactor . | . . . . . Propulsion 4 | 2 2 . . . Treads . | . . . . . Leg 4 | 2 2 . . . Wheel . | . . . . . Hover . | . . . . . Flight . | . . . . . Utility 3 | 1 2 . . . Device 1 | . 1 . . . Storage 1 | 1 . . . . Processor 1 | . 1 . . . Hackware . | . . . . . Protection . | . . . . . Artifact . | . . . . . Weapon 4 | 2 2 . . . Energy Gun 2 | 1 1 . . . Energy Cannon . | . . . . . Ballistic Gun 2 | 1 1 . . . Ballistic Cannon . | . . . . . Launcher . | . . . . . Special Weapon . | . . . . . Impact Weapon . | . . . . . Slashing Weapon . | . . . . . Piercing Weapon . | . . . . . Special Melee Weapon . | . . . . . Unidentified Prototypes . | . . . . . Parts Lost 3 | . . 1 . 2 Power 2 | . . 1 . 1 Propulsion . | . . . . . Utility . | . . . . . Weapon 1 | . . . . 1 Highest Loss Streak 1 | . . 1 . 1 To Critical Strikes 1 | . . . . 1 Average Slot Usage (%) 99 | . 98 99 100 97 Engine 10 | . 3 12 14 . Core 3 | . 10 1 . 12 Leg 28 | . 28 28 28 28 Storage 14 | . 14 14 14 14 Processor 13 | . 12 14 14 14 Energy Gun 14 | . 14 14 14 14 Ballistic Gun 13 | . 14 14 14 12 Naked Turns . | . . . . . Heaviest Build 16 | 14 16 15 13 15 Greatest Support 26 | 20 26 26 26 26 Greatest Overweight (x) 1 | 1 . . . . Average Overweight (x) . | . . . . . Largest Inventory Capacity 8 | 8 8 8 8 8 Average Capacity 7 | 6 8 8 8 8 Most Carried 8 | . 6 7 8 7 Average Carried 6 | . 5 6 7 7 Final Capacity 8 | 8 8 8 8 8 Final Carried 7 | . 6 7 7 7 Class Distribution -------------------- 100% | Mutant Dominant Class ---------------- Mutant | -10/Materials Mutant | -10/Mines Mutant | -10/Exiles Mutant | -9/Mines Resources | -11 -10 -10 -10 -9 ----------- Run | Yrd Mat Min Exi Min Matter Collected 566 | 256 136 121 . 53 Remotely . | . . . . . Salvage Created 524 | . 334 172 . 18 Parts 27 | . 17 10 . . Haulers Intercepted . | . . . . . Recyclers Shooed . | . . . . . Parts Field Recycled . | . . . . . Retrieved Matter . | . . . . . Parts Self-Destructed . | . . . . . Prevented . | . . . . . Kills | -11 -10 -10 -10 -9 ------- Run | Yrd Mat Min Exi Min Combat Hostiles Destroyed 16 | . 7 8 . 1 Guns 16 | . 7 8 . 1 Classes Destroyed 4 | . 2 1 . 1 Watcher 1 | . 1 . . . Swarmer 6 | . . 6 . . Grunt 9 | . 7 2 . . Assembled 1 | . . . . 1 Best Kill Streak 5 | . 4 5 . 1 Combat Bots Only 5 | . 4 5 . 1 Max Kills in Single Turn 1 | . 1 1 . 1 Gunslinging . | . . . . . Exploded . | . . . . . Melee . | . . . . . Uniques/NPCs Destroyed . | . . . . . Combat | -11 -10 -10 -10 -9 -------- Run | Yrd Mat Min Exi Min Hostile Shots Fired 83 | . 26 36 . 21 Missed 20 | . 7 9 . 4 Damage Taken 813 | . 249 280 . 284 Core 255 | . 56 61 . 138 Absorbed by Shields . | . . . . . Core Remaining (%) 100 | 100 . . . . Volleys Fired 68 | . 31 20 9 8 Largest 2 | . 2 2 2 2 Hottest 85 | . 85 85 85 85 Shots Fired 129 | . 59 39 18 13 Gun 129 | . 59 39 18 13 Cannon . | . . . . . Launcher . | . . . . . Special . | . . . . . Kinetic 65 | . 31 20 9 5 Thermal 64 | . 28 19 9 8 Explosive . | . . . . . Electromagnetic . | . . . . . Robot Hit Streak 8 | . 8 4 . 4 Robot Miss Streak 9 | . 7 9 . 2 Penetration Max . | . . . . . Secondary Targets 2 | . 1 1 . . Max Gunslinging Chain 1 | . 1 1 . . Shots Hit Robots 56 | . 30 19 . 7 Core Hits 31 | . 16 11 . 4 Critical Kills . | . . . . . Critical Parts Destroyed . | . . . . . Critical Strikes 1 | . . 1 . . Burn 1 | . . 1 . . Melee Attacks . | . . . . . Impact . | . . . . . Slashing . | . . . . . Piercing . | . . . . . Sneak Attacks . | . . . . . Combat Hostiles . | . . . . . Follow-up Attacks . | . . . . . Damage Inflicted 852 | . 427 295 . 130 Guns 852 | . 427 295 . 130 Cannons . | . . . . . Explosions . | . . . . . Melee . | . . . . . Ramming . | . . . . . Kinetic 290 | . 148 93 . 49 Thermal 562 | . 279 202 . 81 Explosive . | . . . . . Electromagnetic . | . . . . . Impact . | . . . . . Slashing . | . . . . . Piercing . | . . . . . Highest Corruption 1 | . 1 1 1 1 Average Corruption 1 | . 1 1 1 1 Corruption Purged . | . . . . . Corruption Blocked . | . . . . . Effects 24 | . 5 7 12 . Message Errors 8 | . 2 2 4 . Matter Fused 4 | . 2 1 1 . Heat Flow Errors 4 | . . . 4 . Energy Discharges 4 | . 1 2 1 . Data Loss (minor) 2 | . . 1 1 . Data Loss (major) 1 | . . 1 . . Alerts 1 | . . . 1 . Overload Shots . | . . . . . Overflow Damage . | . . . . . Projectiles . | . . . . . Explosions . | . . . . . Melee . | . . . . . Knockbacks . | . . . . . Impact . | . . . . . Kinetic . | . . . . . Secondary . | . . . . . Self-Inflicted Damage . | . . . . . Shots . | . . . . . Rammed . | . . . . . Targets Rammed . | . . . . . Kicked . | . . . . . Crushed . | . . . . . Highest Temperature 354 | . 354 300 170 106 Average Temperature 94 | . 105 109 66 48 Received Heat Transfer 335 | . 147 108 . 80 Effects 2 | . 2 . . . Shutdowns 1 | . 1 . . . Damage (minor) 1 | . 1 . . . Siege Activations . | . . . . . Robots Corrupted . | . . . . . Combat Hostiles . | . . . . . Parts Fried . | . . . . . Impact Corruptions . | . . . . . Robots Melted . | . . . . . Combat Hostiles . | . . . . . Parts Melted . | . . . . . Heat Transferred 1369 | . 629 555 . 185 Parts Sabotaged . | . . . . . Parts Stolen . | . . . . . Parts Stripped . | . . . . . Power Chain Reactions . | . . . . . Alert | -11 -10 -10 -10 -9 ------- Run | Yrd Mat Min Exi Min Peak Influence 277 | . 277 197 . 58 Initial 17 | . . 17 . . Average 83 | . 83 96 . 47 Maximum Alert Level 1 | . 1 . . . Low Security (%) 94 | 100 86 100 . 100 Level 1 5 | . 13 . . . Level 2 . | . . . . . Level 3 . | . . . . . Level 4 . | . . . . . Level 5 . | . . . . . High Security . | . . . . . Max Security . | . . . . . Squads Dispatched 2 | . 2 . . . Investigation . | . . . . . Extermination . | . . . . . Reinforcement 2 | . 2 . . . Assault . | . . . . . Garrison . | . . . . . Intercept . | . . . . . Searches Triggered . | . . . . . Construction Impeded . | . . . . . Haulers Reinforced . | . . . . . Active Scanning Responses . | . . . . . Cargo Convoy Interrupts . | . . . . . Stealth | -11 -10 -10 -10 -9 --------- Run | Yrd Mat Min Exi Min Distress Signals . | . . . . . Communications Jammed . | . . . . . Distress Signals . | . . . . . Times Spotted 34 | . 15 10 . 9 Peak Tracking Total 9 | . 4 3 . 9 Tactical Retreats 2 | . 1 . . 1 Traps | -11 -10 -10 -10 -9 ------- Run | Yrd Mat Min Exi Min Traps Triggered . | . . . . . Indirectly . | . . . . . Trap Hack Attempts . | . . . . . Triggered . | . . . . . Disarmed . | . . . . . Reprogrammed . | . . . . . Reused . | . . . . . Traps Extracted . | . . . . . Installed . | . . . . . Triggered . | . . . . . Machines | -11 -10 -10 -10 -9 ---------- Run | Yrd Mat Min Exi Min Machines Disabled . | . . . . . Max in Single Turn . | . . . . . Machines Repaired . | . . . . . Machines Dismantled . | . . . . . Machines Sabotaged . | . . . . . Overloaded Fab Kills . | . . . . . Hacking | -11 -10 -10 -10 -9 --------- Run | Yrd Mat Min Exi Min Machines Accessed 8 | . 4 . 4 . Terminals 4 | . 4 . . . Fabricators . | . . . . . Repair Stations . | . . . . . Recycling Units . | . . . . . Scanalyzers . | . . . . . Garrison Access . | . . . . . Total Hacks 17 | . 13 . 4 . Successful 8 | . 4 . 4 . Failed 9 | . 9 . . . Catastrophic 2 | . 2 . . . Database Lockouts . | . . . . . Manual 39 | . . . 39 . Terminals 13 | . 13 . . . Fabricators . | . . . . . Repair Stations . | . . . . . Recycling Units . | . . . . . Scanalyzers . | . . . . . Garrison Access . | . . . . . Terminal Hacks 8 | . 4 . 4 . Record 4 | . . . 4 . Prototype ID Bank 1 | . 1 . . . Alert Level 1 | . 1 . . . Unreport Threat 1 | . 1 . . . Zone Layout 1 | . 1 . . . Fabricator Hacks . | . . . . . Repair Station Hacks . | . . . . . Recycling Unit Hacks . | . . . . . Scanalyzer . | . . . . . Garrison Access Hacks . | . . . . . Unauthorized Hacks . | . . . . . Terminals . | . . . . . Fabricators . | . . . . . Repair Stations . | . . . . . Recycling Units . | . . . . . Scanalyzers . | . . . . . Garrison Access . | . . . . . Data Cores Recovered . | . . . . . Used . | . . . . . Hacking Detections 4 | . 4 . . . Full Trace Events 2 | . 2 . . . Feedback Events 1 | . 1 . . . Corruption 1 | . 1 . . . Feedback Blocked . | . . . . . Robot Schematics Acquired . | . . . . . Robots Built . | . . . . . Authchips . | . . . . . Time . | . . . . . Total Robot Build Rating . | . . . . . Part Schematics Acquired . | . . . . . Parts Built . | . . . . . Authchips . | . . . . . Time . | . . . . . Total Part Build Rating . | . . . . . Parts Repaired . | . . . . . Time . | . . . . . Parts Recycled . | . . . . . Recycled Matter . | . . . . . Retrieved Matter . | . . . . . Retrieved Components . | . . . . . Parts Scanalyzed . | . . . . . Part Schematics Acquired . | . . . . . Parts Damaged . | . . . . . Bothacking | -11 -10 -10 -10 -9 ------------ Run | Yrd Mat Min Exi Min Used RIF Installer . | . . . . . Robots Hacked . | . . . . . Non-combat . | . . . . . Combat . | . . . . . Robot Hacks Applied . | . . . . . Relay Couplers Released . | . . . . . Fabnet Peak Effective % . | . . . . . Robots Rewired . | . . . . . Allies Hacked . | . . . . . Hacks Repelled . | . . . . . Allies | -11 -10 -10 -10 -9 -------- Run | Yrd Mat Min Exi Min Total Allies 3 | . . 3 . . Largest Group 3 | . . 3 1 1 Highest-Rated Group 40 | . . 40 16 16 Highest-Rated Ally 16 | . . 16 16 16 Total Orders . | . . . . . Ally Attacks 30 | . . 25 . 5 Total Damage 368 | . . 285 . 83 Kills 4 | . . 2 . 2 Allies Corrupted . | . . . . . Allies Melted 1 | . . . . 1 Intel | -11 -10 -10 -10 -9 ------- Run | Yrd Mat Min Exi Min Robot Analysis Total . | . . . . . Derelict Logs Recovered 1 | . . 1 . . Drone Launches . | . . . . . Drone Recoveries . | . . . . . Exploration | -11 -10 -10 -10 -9 ------------- Run | Yrd Mat Min Exi Min Turns Passed 3039 | 59 648 684 1530 118 Spaces Moved 2282 | 45 438 469 1249 81 Core 5 | 5 . . . . Treads . | . . . . . Legs 2277 | 40 438 469 1249 81 Wheels . | . . . . . Hover . | . . . . . Flight . | . . . . . Fastest Speed 50 | 50 120 120 120 120 Average Speed 119 | 113 120 120 120 120 Slowest Speed 120 | 120 120 120 120 120 Overloaded Moves . | . . . . . Propulsion Burnouts . | . . . . . Robots Hopped . | . . . . . Cave-ins Triggered . | . . . . . Exploration Rate (%) 56 | 3 70 92 94 25 Regions Visited 4 Branch Regions 3 Pre-discovered Areas . | . . . . . Known Exits Taken 3 | . 1 1 1 . Unknown Exits Taken 1 | 1 . . . . Scrap Searched 1 | . . 1 . . Spaces Dug . | . . . . . Terrain Destroyed . | . . . . . Melee . | . . . . . Projectile . | . . . . . AOE . | . . . . . Terrain Rammed . | . . . . . Walls Destroyed . | . . . . . Machines Disabled . | . . . . . Actions | -11 -10 -10 -10 -9 --------- Run | Yrd Mat Min Exi Min Total 2451 | 50 499 550 1262 90 Wait 82 | . 19 60 3 . Move 2278 | 44 437 468 1248 81 Hop . | . . . . . Pick Up 5 | . 3 1 1 . Fast Attach 9 | 6 1 1 . 1 Attach . | . . . . . Detach . | . . . . . Swap 6 | . 6 . . . Drop 3 | . 2 . 1 . Fire 68 | . 31 20 9 8 Melee . | . . . . . Ram . | . . . . . Kick . | . . . . . Crush . | . . . . . Escape Stasis . | . . . . . Rewire . | . . . . . Trap . | . . . . . Miscellaneous . | . . . . . Route ------- -11/Scrapyard -10/Materials (discovered 4 exits: *Mat x2 / *Min x2) -10/Mines (discovered 3 exits: *Mat x2 / *Exi) -10/Exiles (discovered 2 exits: *Min x2) -9/Mines History --------- Turn | Location | Event 10 | -11/Scrapyard | Discovered new exit (range 15) 60 | -11/Scrapyard | Entered Materials 148 | -10/Materials | Discovered new exit (range 13) 269 | -10/Materials | Identified exit to Mines 308 | -10/Materials | Build established: Mutant 379 | -10/Materials | Discovered new exit (range 11) 390 | -10/Materials | Identified exit to Materials 582 | -10/Materials | Discovered exit to Mines (range 16) 611 | -10/Materials | Discovered exit to Materials (range 10) 708 | -10/Materials | Entered Mines 850 | -10/Mines | Discovered exit to Materials (range 8) 859 | -10/Mines | Assisted by bots powering up and referring to "LRC-V3" 860 | -10/Mines | Learned 2 Materials zone layouts 1123 | -10/Mines | Found a hidden stash of uninstalled traps 1335 | -10/Mines | Discovered exit to Materials (range 6) 1387 | -10/Mines | Deemed a non-threat by the Exiles lab entrance 1387 | -10/Mines | Discovered new exit (range 5) 1390 | -10/Mines | Identified exit to Exiles 1392 | -10/Mines | Entered Exiles 1392 | -10/Exiles | Found Exiles lab abandoned 1392 | -10/Exiles | Accompanied by 1 ally 1806 | -10/Exiles | Discovered new exit (range 12) 1817 | -10/Exiles | Identified exit to Mines 2086 | -10/Exiles | Discovered exit to Mines (range 15) 2922 | -10/Exiles | Entered Mines 2922 | -9/Mines | Accompanied by 1 ally 2929 | -9/Mines | Core integrity fell below 50% 2995 | -9/Mines | Assembled infested the area 3000 | -9/Mines | Assisted by a Guerilla fighting off Assembled 3039 | -9/Mines | Core integrity fell below 20% 3040 | -9/Mines | Destroyed by as-48280 with Assembled Blade Last Messages --------------- Not this time, boltface! >>\\1234 Not this time, boltface! 02785_ Connecting with EX-Prototypes Database... LOCATION=MINES GOAL=ESCAPE 02924_ Lgt. Ion Engine destroyed. 02929_ G-47 Trooper destroyed. 02935_ G-34 Mercenary destroyed. 02939_ Acquired Lgt. Nuclear Core. 02943_ Acquired 51 matter. 02944_ Acquired 2 matter. 02995_ ALERT: Infestation in the mines, dispatching Demolisher response squad. 03000_ A derelict emerges from the shadows: "You need to get out of here! I've been tracking a group of Assembled to figure out where they're coming from, and they're closing on this area, come on!" 03034_ Critical hit (Destroy). 03034_ Assault Rifle destroyed. 03040_ as-89362 destroyed. Map ----- +----------------------------------------------------+ | ????????????????????????????????????????????? | | ????????????????????????????????????????????? | | ????????????????????????????????????????????? | | ????????????????????????????????????????????? | | ????????????????????????????????????????????? | | ????????????????????????????????????????????? | | ????????????????????????????????????????????? | | ????????????????????????????????????????????? | | ????????????????????????????????????????????? | | ????????????????????????????????????????????? | | ??????????????????????#?????????????????????? | | ?????????????????????? ?????????????????????? | | ?????????????????????? ?????????????????????? | | ?????????????????????? #????????????????????? | | ?????????????????????# ????????????????????? | | ?????????????????????# #????????????????????? | | ?????????????????????# #????????????????????? | | ?????????????????????# #????????????????????? | | ?????????????????????# #????????????????????? | | ?????????????????????# #????????????????????? | | ?????????????????????# ##### #??????????????? | | ?????????????######### #??????????????? | | ?????????????# #????????????????????? | | ?????????????# ####### ####?????????????????? | | ?????#####???# #?????#a%a #?????????????????? | | ????## ##?## ##????# @#?????????????????? | | ????# ### ##???#### #?????????????????? | | ????# ##?????# #?????????????????? | | ???## #?????# #?????????????????? | | #### #?????# #?????????????????? | | # ### #???### ################??? | | ##?## ##???# #??? | | #???# ##????# #??? | | #???## ##?????# #??? | | #????############ !! #??? | | ######## = ## !! #??? | | # % ## !! #??? | | #= ## !! #??? | | #### #### # ## #??? | | ##??####??# """ ## #??? | | #?????????# """ ## #??? | | ??????????#### """ ## #??? | | ?????????????########## #??? | | ??????????????????????####################??? | | ????????????????????????????????????????????? | | | | | | | | | | | +----------------------------------------------------+ Best States ------------- Heat Dissipation 25 Energy Generation 14 Energy Capacity 250 Matter Stores 300 Matter Capacity 300 Sight Range 16 Terrain Scan Density 10 Evasion (%) 55 Item Schematics ----------------- None Robot Schematics ------------------ None Fabricated ------------ Nothing Alien Tech Used ----------------- None Achievements -------------- None Challenges ------------ None Game ------ Seed TrackerNeutrinoExoskeleton Manual? 0 Play Time 00:35:56 Cumulative 23.4 hours Start 2024.05.01 @ 15:35:09 End 2024.05.01 @ 17:27:25 Sessions 1 Manual Loads 0 Difficulty Rogue Special Mode None Game No. 22 Rogue 22 Adventurer 0 Explorer 0 Win Type - Total 0 Types 0/0/0/0/0/0/0/0/0 Lore% 5 Gallery% 22 Achievement% 17 Wizard Run 0 Options --------- Layout 0 ASCII 0 Keyboard 1 Movement Numpad Keybinds 0 Fullscreen 1 Font 18/SmallcapsGlow Map View 76x50 Zoom Use 0% Tactical HUD 1 Map Filters NONE Filters NONE Steam 1 RUN: add06fc8-da25-4e32-b7e1-b8314c8b0f82